fUSD/lending_fUSD_20241017
["ID","MTS","AMOUNT","RATE_DAILY","PERIOD"]
[340374159,1729123205753,616.17,8.542e-05,2]
[340374160,1729123272985,242.01,0.00010363,2]
[340374161,1729123303632,640.0,0.00010302,2]
[340374162,1729123319887,550.0,0.0001,2]
[340374163,1729123345619,150.0,0.00010356,2]
[340374164,1729123514988,-704.89,0.00010409,2]
[340374165,1729123515018,-360.0,0.00010486,2]
[340374166,1729123515047,-250.0,0.00010539,2]
[340374167,1729123515075,-219.98,0.00010627,2]
[340374168,1729123515106,-150.0,0.00010753,2]
[340374169,1729123515133,-1245.0,0.00010754,2]
[340374170,1729123515159,-560.0,0.00010754,2]
[340374171,1729123515187,-555.0,0.00010754,2]
[340374172,1729123515214,-795.13,0.00010754,2]
[340374173,1729123751383,585.36,8.618e-05,2]
[340374179,1729123831857,-488.0,0.00010594,2]
[340374180,1729123831867,-250.0,0.00010595,2]
[340374181,1729123831876,-139.87,0.00010754,2]
[340374182,1729123831886,-3357.0,0.00010754,2]
[340374183,1729123831895,-538.13,0.00010754,2]
[340374197,1729123837854,-1370.87,0.00010754,2]
[340374198,1729123837864,-806.0,0.00010754,2]
[340374199,1729123837874,-585.36,0.00010881,2]
[340374200,1729123837884,-14689.21429371,0.00010899,2]
[340374201,1729123837907,-385.58068765,0.00010899,2]
[340374206,1729123839960,-9133.37658857,0.00010899,2]
[340374236,1729123845984,-1625.69597014,0.00010899,2]
[340374237,1729123849218,201.08482375,0.00015,15]
[340374239,1729123999372,500.0,0.00027,60]
[340374240,1729124011551,228.1377465,0.00027,60]
[340374245,1729124239394,526.82,8.583e-05,2]
[340374251,1729124454998,225.02,0.00010319,2]
[340374252,1729124504381,500.0,0.00027,60]
[340374254,1729124582688,251.79,0.00010304,2]
[340374266,1729125031997,-609.6,0.00010426,2]
[340374267,1729125032007,-390.4,0.00010444,2]
[340374268,1729125032016,-250.0,0.00010489,2]
[340374269,1729125032028,-82.63115809,0.00010642,2]
[340374273,1729125037926,-89.65884191,0.00010642,2]
[340374274,1729125037936,-526.82,0.00010847,2]
[340374275,1729125037947,-4607.85724898,0.0001088,2]
[340374276,1729125037956,-302.024,0.00010899,2]
[340374277,1729125037965,-150.0,0.00010899,2]
[340374278,1729125037974,-2466.61253386,0.000109,2]
[340374279,1729125037983,-5436.67773829,0.000109,2]
[340374280,1729125038036,-2832.65563312,0.000109,2]
[340374283,1729125040084,-8030.44788906,0.000109,2]
[340374284,1729125040165,-848.35408084,0.000109,2]
[340374322,1729125042869,-4450.5691635,0.000109,2]
[340374324,1729125045890,-7055.478873,0.000109,2]
[340374325,1729125046003,-2756.03352466,0.000109,2]
[340374326,1729125046059,-10124.12489753,0.000109,2]
[340374327,1729125046068,-1540.97020396,0.000109,2]
[340374328,1729125046077,-208.95,0.00010959,2]
[340374329,1729125046086,-164.0,0.00010959,2]
[340374330,1729125046095,-593.52,0.00010959,2]
[340374331,1729125046104,-552.28,0.00010959,2]
[340374332,1729125046113,-499.99,0.00010959,2]
[340374333,1729125046122,-2590.96,0.00010959,2]
[340374334,1729125046131,-273.61,0.00010973,2]
[340374335,1729125046140,-2832.41,0.00010973,2]
[340374336,1729125046150,-201.51190705,0.00010973,2]
[340374337,1729125046159,-399.17,0.00010989,2]
[340374338,1729125046168,-3357.0,0.00010989,2]
[340374339,1729125046177,-1198.714,0.00010989,2]
[340374340,1729125046186,-150.0,0.00010989,2]
[340374341,1729125046195,-13532.0,0.00010989,2]
[340374342,1729125046203,-21.02311427,0.00010989,2]
[340374344,1729125068062,563.91,9.886e-05,2]
[340374345,1729125144834,550.0,0.0001,2]
[340374346,1729125173761,521.05,8.219e-05,2]
[340374348,1729125282675,250.0,9.88e-05,2]
[340374349,1729125351584,500.0,0.0001,7]
[340374350,1729125374434,250.0,9.884e-05,2]
[340374351,1729125626606,1000.0,9.877e-05,2]
[340374352,1729125680503,494.99,8.219e-05,2]
[340374353,1729125823521,250.0,9.887e-05,2]
[340374354,1729125979842,250.0,9.887e-05,2]
[340374355,1729126131643,-494.99,0.0001047,2]
[340374356,1729126131663,-150.0,0.00010712,2]
[340374357,1729126131685,-150.0,0.0001073,2]
[340374358,1729126131707,-300.0,0.00010731,2]
[340374359,1729126131728,-150.0,0.00010732,2]
[340374360,1729126131749,-11242.24105078,0.00010732,2]
[340374361,1729126131772,-150.0,0.00010733,2]
[340374362,1729126131793,-150.0,0.00010734,2]
[340374363,1729126131813,-150.0,0.00010738,2]
[340374364,1729126131834,-150.0,0.0001074,2]
[340374365,1729126131855,-150.0,0.00010741,2]
[340374366,1729126131876,-150.0,0.00010744,2]
[340374367,1729126131895,-150.99,0.00010744,2]
[340374368,1729126131916,-150.0,0.00010748,2]
[340374369,1729126131937,-150.0,0.00010749,2]
[340374370,1729126131958,-150.0,0.00010758,2]
[340374371,1729126131979,-150.0,0.00010761,2]
[340374372,1729126131999,-150.0,0.00010766,2]
[340374373,1729126132019,-150.0,0.00010769,2]
[340374374,1729126132040,-150.0,0.00010776,2]
[340374375,1729126132060,-150.0,0.00010779,2]
[340374376,1729126132081,-150.0,0.00010781,2]
[340374377,1729126132100,-1500.0,0.00010783,2]
[340374378,1729126132121,-150.0,0.00010795,2]
[340374379,1729126132142,-150.0,0.00010796,2]
[340374380,1729126132163,-150.0,0.00010797,2]
[340374381,1729126132182,-3497.970885,0.000108,2]
[340374382,1729126132203,-150.0,0.000108,2]
[340374383,1729126132225,-150.0,0.00010806,2]
[340374384,1729126132246,-1500.0,0.00010812,2]
[340374385,1729126132267,-150.0,0.00010817,2]
[340374386,1729126132288,-150.0,0.0001082,2]
[340374387,1729126132308,-150.0,0.00010837,2]
[340374388,1729126132328,-150.0,0.00010839,2]
[340374389,1729126132347,-232.45356344,0.0001084,2]
[340374390,1729126132368,-150.0,0.00010851,2]
[340374391,1729126132386,-1500.0,0.00010854,2]
[340374392,1729126132406,-150.0,0.00010857,2]
[340374393,1729126132425,-1500.0,0.00010862,2]
[340374394,1729126132446,-150.0,0.00010865,2]
[340374395,1729126132467,-150.0,0.00010866,2]
[340374396,1729126132487,-150.0,0.00010866,2]
[340374397,1729126132507,-150.0,0.00010872,2]
[340374398,1729126132527,-150.0,0.00010872,2]
[340374399,1729126132546,-150.0,0.00010873,2]
[340374400,1729126132568,-150.0,0.00010877,2]
[340374401,1729126132588,-1500.0,0.00010886,2]
[340374402,1729126132608,-1500.0,0.00010891,2]
[340374403,1729126132627,-1320.78,0.00010897,2]
[340374404,1729126132647,-1500.0,0.00010897,2]
[340374405,1729126132668,-7869.73195689,0.00010899,2]
[340374406,1729126132689,-1330.0743,0.000109,2]
[340374407,1729126132710,-1401.9572,0.000109,2]
[340374408,1729126132730,-1027.31346932,0.000109,2]
[340374409,1729126132749,-150.0,0.00010901,2]
[340374410,1729126132773,-150.0,0.00010903,2]
[340374411,1729126132795,-150.0,0.00010907,2]
[340374412,1729126132816,-150.0,0.00010907,2]
[340374413,1729126132838,-48.49757457,0.00010909,2]
[340374414,1729126147285,180.01,9.98e-05,2]
[340374415,1729126168617,200.0,9.977e-05,2]
[340374416,1729126226053,445.49,8.219e-05,2]
[340374425,1729126232208,-445.49,0.00010475,2]
[340374426,1729126232218,-13.76521106,0.00010897,2]
[340374427,1729126232229,-697.89036063,0.00010897,2]
[340374431,1729126238287,-288.34442831,0.00010897,2]
[340374432,1729126238299,-467.0675286,0.000109,2]
[340374442,1729126240156,-532.9324714,0.000109,2]
[340374443,1729126240166,-26.4475286,0.000109,2]
[340374444,1729126240265,-526.54849988,0.000109,2]
[340374526,1729126243154,-131.87961772,0.000109,2]
[340374528,1729126243164,-241.54315423,0.000109,2]
[340374530,1729126243174,-101.50242543,0.00010909,2]
[340374532,1729126243183,-150.0,0.0001093,2]
[340374534,1729126243193,-150.0,0.00010932,2]
[340374536,1729126243203,-55.47919833,0.00010936,2]
[340374539,1729126243214,-94.52080167,0.00010936,2]
[340374540,1729126243224,-912.90919749,0.00010937,2]
[340374542,1729126243235,-587.09080251,0.00010937,2]
[340374543,1729126243244,-88.58345037,0.0001094,2]
[340374544,1729126243255,-61.41654963,0.0001094,2]
[340374545,1729126243265,-150.0,0.00010942,2]
[340374546,1729126243274,-150.0,0.00010943,2]
[340374547,1729126243283,-132.33345021,0.00010943,2]
[340374548,1729126243294,-335.14349106,0.00010943,2]
[340374549,1729126243304,-150.0,0.0001095,2]
[340374550,1729126243313,-151.3402654,0.00010953,2]
[340374551,1729126243322,-150.0,0.00010954,2]
[340374552,1729126243331,-130.48536619,0.00010958,2]
[340374553,1729126243390,-19.51463381,0.00010958,2]
[340374554,1729126243399,-162.25,0.00010959,2]
[340374555,1729126243408,-105.33536609,0.00010959,2]
[340374557,1729126246043,-118.99463391,0.00010959,2]
[340374558,1729126246054,-150.0,0.00010959,2]
[340374559,1729126246066,-249.10736268,0.00010959,2]
[340374560,1729126246733,-0.88211576,0.00010959,2]
[340374561,1729126246764,-224.82052156,0.00010959,2]
[340374562,1729126246775,-133.42643604,0.00010959,2]
[340374563,1729126246792,-116.57356396,0.00010959,2]
[340374564,1729126246803,-1500.0,0.00010961,2]
[340374565,1729126246815,-150.0,0.00010962,2]
[340374566,1729126246826,-150.0,0.00010963,2]
[340374567,1729126246840,-150.0,0.00010968,2]
[340374568,1729126246851,-150.0,0.0001097,2]
[340374569,1729126246864,-150.0,0.00010973,2]
[340374570,1729126246875,-150.0,0.00010976,2]
[340374571,1729126246886,-150.0,0.00010981,2]
[340374572,1729126246898,-1500.0,0.00010983,2]
[340374573,1729126246909,-672.83074943,0.00010985,2]
[340374574,1729126339262,224.2,0.00010373,2]
[340374575,1729126352800,150.0,0.00015,15]
[340374576,1729126492750,300.0,0.00027,60]
[340374577,1729126503708,635.20438648,0.00010393,2]
[340374578,1729126666740,300.93,0.00010206,2]
[340374579,1729126679929,484.89,0.00010236,2]
[340374580,1729126805947,1000.0,0.00010326,2]
[340374581,1729126812009,347.54,0.00010356,2]
[340374582,1729126827142,300.0,0.00027,60]
[340374583,1729126839687,8807.7,0.00010283,2]
[340374584,1729126848240,448.89,8.365e-05,2]
[340374585,1729126872058,274.04,0.00010283,2]
[340374586,1729126876188,350.0,0.000109,4]
[340374587,1729126928711,203.31,0.0001029,2]
[340374588,1729126929488,250.0,0.0001029,2]
[340374589,1729126970013,550.0,0.0001,2]
[340374590,1729126972560,1224.01,0.00010343,2]
[340374591,1729127068541,500.0,0.00027,60]
[340374592,1729127092804,500.0,0.00027,60]
[340374593,1729127126316,443.66,0.00027,60]
[340374599,1729127264829,246.30291802,0.00010348,2]
[340374608,1729127432225,-304.97,0.00010434,2]
[340374610,1729127432234,-196.00419404,0.00010448,2]
[340374614,1729127432287,-53.99580596,0.00010448,2]
[340374616,1729127432296,-200.0,0.0001046,2]
[340374618,1729127432305,-448.89,0.00010629,2]
[340374619,1729127432315,-365.5107,0.00010897,2]
[340374620,1729127432324,-300.0,0.00010899,2]
[340374621,1729127432333,-1952.41814127,0.000109,2]
[340374622,1729127432404,-5363.26270856,0.000109,2]
[340374623,1729127432414,-211.35025989,0.000109,2]
[340374624,1729127432424,-150.0,0.00010923,2]
[340374625,1729127432432,-99.67239574,0.00010924,2]
[340374626,1729127432567,-397.09512393,0.00010924,2]
[340374628,1729127438604,-63.23248033,0.00010924,2]
[340374629,1729127438614,-449.0,0.00010924,2]
[340374630,1729127438623,-812.0,0.00010924,2]
[340374631,1729127438633,-1245.0,0.00010924,2]
[340374632,1729127438642,-555.0,0.00010924,2]
[340374633,1729127438651,-935.0,0.00010924,2]
[340374634,1729127438660,-3357.0,0.00010924,2]
[340374635,1729127438669,-1864.69377183,0.00010924,2]
[340374637,1729127440195,-9150.285104,0.00010924,2]
[340374672,1729127513628,449.94,8.853e-05,2]
[340374676,1729127667284,250.0,0.0001037,2]
[340374678,1729127772424,464.65,0.00010323,2]
[340374679,1729127781637,211.97,0.00010358,2]
[340374680,1729127867076,151.8,0.00010319,2]
[340374681,1729127873225,840.0,0.00010319,2]
[340374682,1729127935732,23900.0,0.00010319,2]
[340374683,1729128007514,273.16565643,0.00027,60]
[340374684,1729128013767,250.0,0.00010367,2]
[340374688,1729128152930,450.16,8.589e-05,2]
[340374692,1729128497289,23900.0,0.00010384,2]
[340374697,1729128539271,224.2,0.00010384,2]
[340374702,1729128631693,-387.91,0.0001044,2]
[340374703,1729128631703,-32.84153955,0.00010459,2]
[340374704,1729128631825,-197.06846045,0.00010459,2]
[340374705,1729128631838,-64.99153955,0.00010462,2]
[340374706,1729128631849,-263.00846045,0.00010462,2]
[340374707,1729128631858,-1000.0,0.000105,2]
[340374708,1729128631867,-450.16,0.00010853,2]
[340374709,1729128631876,-3219.3509,0.00010892,2]
[340374710,1729128631885,-6735.92196033,0.00010899,2]
[340374711,1729128631894,-190.90068575,0.000109,2]
[340374712,1729128631903,-184.93147743,0.000109,2]
[340374713,1729128631913,-225.32884433,0.000109,2]
[340374714,1729128631922,-456.58376414,0.000109,2]
[340374715,1729128631932,-172.6,0.00010959,2]
[340374716,1729128631942,-164.85,0.00010959,2]
[340374717,1729128631951,-508.91,0.00010959,2]
[340374718,1729128631962,-250.0,0.00010959,2]
[340374719,1729128631972,-213.11,0.00010959,2]
[340374720,1729128631982,-150.0,0.00010959,2]
[340374721,1729128631991,-1500.0,0.00010959,2]
[340374722,1729128632000,-273.822,0.0001098,2]
[340374723,1729128632009,-288.17,0.0001098,2]
[340374724,1729128632018,-150.0,0.0001098,2]
[340374725,1729128632029,-8860.59,0.0001098,2]
[340374726,1729128632039,-3357.0,0.00010981,2]
[340374727,1729128632047,-211.10778202,0.00010981,2]
[340374728,1729128632060,-872.89221798,0.00010981,2]
[340374729,1729128632069,-499.99,0.00010981,2]
[340374730,1729128632081,-4827.48952196,0.00010981,2]
[340374733,1729128637862,-4966.66047804,0.00010981,2]
[340374734,1729128637872,-450.463,0.00010981,2]
[340374735,1729128637881,-560.0,0.00010981,2]
[340374736,1729128637890,-812.0,0.00010981,2]
[340374737,1729128637899,-1245.0,0.00010981,2]
[340374738,1729128637910,-150.999,0.00010981,2]
[340374739,1729128637919,-6721.29752196,0.00010981,2]
[340374745,1729128639743,-6812.70247804,0.00010981,2]
[340374746,1729128639753,-22511.20568299,0.00010984,2]
[340374797,1729128794694,550.0,0.0001,2]
[340374798,1729128797383,450.6,8.369e-05,2]
[340374812,1729128857523,957.23,0.00027,60]
[340374823,1729129020844,737.6,0.00010069,2]
[340374824,1729129036367,174.37,0.00010061,2]
[340374825,1729129109409,6751.9,0.00010072,2]
[340374828,1729129210904,257.31,0.00010048,2]
[340374830,1729129291390,250.0,0.00010074,2]
[340374831,1729129335646,428.07,8.219e-05,2]
[340374832,1729129411263,4040.3171,0.00010331,2]
[340374833,1729129517926,409.92,0.00010042,2]
[340374834,1729129541661,169.57,0.00010102,2]
[340374835,1729129592814,250.0,0.00010135,2]
[340374837,1729129698174,173.1,0.00010101,2]
[340374838,1729129705338,1001.7767,0.00027,60]
[340374839,1729129806367,257.31,0.00010076,2]
[340374841,1729129831907,-428.07,0.00010481,2]
[340374842,1729129831918,-2504.0,0.00010554,2]
[340374843,1729129831928,-150.0,0.00010877,2]
[340374844,1729129831938,-300.0,0.00010883,2]
[340374845,1729129831947,-6341.53883678,0.00010884,2]
[340374846,1729129831956,-239.2878,0.00010885,2]
[340374847,1729129831966,-5122.6884,0.00010892,2]
[340374848,1729129831975,-530.52261629,0.00010892,2]
[340374849,1729129831984,-603.4512,0.00010892,2]
[340374850,1729129831993,-6921.73352921,0.00010899,2]
[340374851,1729129832003,-191.73492021,0.000109,2]
[340374852,1729129832013,-163.52143643,0.000109,2]
[340374853,1729129832022,-2092.76,0.00010909,2]
[340374854,1729129832031,-499.99,0.00010909,2]
[340374855,1729129832041,-169.33,0.00010959,2]
[340374856,1729129832050,-407.12,0.00010959,2]
[340374857,1729129832059,-250.0,0.00010959,2]
[340374858,1729129832069,-283.32,0.00010959,2]
[340374859,1729129832078,-150.0,0.00010978,2]
[340374860,1729129832087,-1245.0,0.00010979,2]
[340374861,1729129832096,-449.0,0.00010979,2]
[340374862,1729129832106,-271.884,0.00010979,2]
[340374863,1729129832115,-812.0,0.00010979,2]
[340374864,1729129832125,-935.0,0.00010979,2]
[340374865,1729129832134,-556.802,0.00010979,2]
[340374866,1729129832143,-1004.458,0.00010979,2]
[340374867,1729129832152,-7195.064,0.00010979,2]
[340374868,1729129832162,-150.0,0.00010979,2]
[340374869,1729129832173,-256.35,0.00010979,2]
[340374870,1729129832182,-3869.9701023,0.00010984,2]
[340374871,1729129832191,-22016.3666666,0.00010984,2]
[340374872,1729129832200,-1842.0172391,0.00010984,2]
[340374873,1729129832210,-2243.812,0.00010984,2]
[340374874,1729129832219,-7255.7111032,0.00010984,2]
[340374875,1729129832228,-827.16925057,0.00010985,2]
[340374876,1729129832237,-151.0,0.00010985,2]
[340374877,1729129832248,-151.0,0.00010985,2]
[340374878,1729129832257,-151.0,0.00010985,2]
[340374879,1729129832266,-202.11,0.00010987,2]
[340374880,1729129832275,-151.102,0.00010988,2]
[340374881,1729129832511,-168.843,0.00010988,2]
[340374882,1729129832521,-171.088,0.00010988,2]
[340374883,1729129832530,-192.581,0.00010988,2]
[340374884,1729129832540,-152.28,0.00010988,2]
[340374885,1729129832551,-69840.97306823,0.00010991,2]
[340374886,1729129832563,-920.06431593,0.00010991,2]
[340374887,1729129832574,-5484.94931223,0.00010991,2]
[340374888,1729129832598,-61618.20238323,0.00010991,2]
[340374889,1729129832609,-812.9464343,0.00010991,2]
[340374890,1729129834741,-24996.88478858,0.00010991,2]
[340374891,1729129834752,-3012.42370077,0.00010991,2]
[340374892,1729129834765,-180710.37001986,0.00010991,2]
[340374893,1729129834774,-3753.978399,0.00010992,2]
[340374894,1729129834784,-3637.9866956,0.00010992,2]
[340374895,1729129834794,-3521.9949923,0.00010992,2]
[340374896,1729129834803,-3406.0032889,0.00010992,2]
[340374897,1729129834812,-3290.0115856,0.00010992,2]
[340374898,1729129834822,-20596.46526434,0.00010992,2]
[340374899,1729129838103,-150.0,0.00010979,2]
[340374900,1729129838113,-760.02140226,0.00010992,2]
[340374901,1729129838123,-7261.99718716,0.00010992,2]
[340374902,1729129838134,-13434.60947944,0.00010992,2]
[340374903,1729129838144,-20036.7266666,0.00010992,2]
[340374904,1729129838153,-19376.8466666,0.00010992,2]
[340374905,1729129838163,-18716.9666666,0.00010992,2]
[340374906,1729129838174,-2201.9755945,0.00010992,2]
[340374907,1729129838184,-2561.9339499,0.00010992,2]
[340374908,1729129838195,-2921.8923053,0.00010992,2]
[340374909,1729129838204,-3281.8506607,0.00010992,2]
[340374910,1729129838215,-3641.8090161,0.00010992,2]
[340374911,1729129838224,-3688.49204839,0.00010992,2]
[340374912,1729129838234,-2682.2872,0.00010992,2]
[340374913,1729129838244,-3120.7624,0.00010992,2]
[340374914,1729129838257,-3559.2376,0.00010992,2]
[340374915,1729129838267,-3997.7128,0.00010992,2]
[340374916,1729129838276,-4436.188,0.00010992,2]
[340374917,1729129838285,-8483.0288834,0.00010992,2]
[340374918,1729129838294,-5423.09836748,0.00010992,2]
[340374919,1729129838305,-4287.24829622,0.00010992,2]
[340374920,1729129838315,-10937.6644439,0.00010992,2]
[340374921,1729129838324,-12164.9822241,0.00010992,2]
[340374922,1729129838334,-13392.3000044,0.00010992,2]
[340374923,1729129838346,-500.0,0.00010999,2]
[340374924,1729129838356,-216.32144948,0.00010999,2]
[340374925,1729129838366,-500.0,0.00010999,2]
[340374926,1729129838377,-535.0,0.00011,2]
[340374927,1729129838386,-294966.48358222,0.00011,2]
[340374928,1729129838426,-516.07115909,0.00011,2]
[340374941,1729129839854,-662.70634916,0.00011,2]
[340374942,1729129839865,-984.9210532,0.00011,2]
[340374943,1729129839880,-2537.03952318,0.00011,2]
[340374944,1729129840020,-1593.75750387,0.00011,2]
[340374945,1729129840032,-2359.36710557,0.00011,2]
[340374946,1729129840043,-4465.35320515,0.00011,2]
[340374947,1729129840055,-807.664508,0.00011,2]
[340374948,1729129840067,-630.25841339,0.00011,2]
[340374949,1729129840078,-2511.31265484,0.00011,2]
[340374950,1729129840088,-550.50093868,0.00011,2]
[340374951,1729129840164,-2144.15986426,0.00011,2]
[340374952,1729129840181,-634.457277,0.00011,2]
[340374953,1729129840191,-2361.80800005,0.00011,2]
[340374954,1729129840203,-1895.093321,0.00011,2]
[340374955,1729129842735,-1657.5883814,0.00011,2]
[340374958,1729129842746,-2954.1894928,0.00011,2]
[340374960,1729129842757,-2141.25728077,0.00011,2]
[340374973,1729129842878,-500.0,0.00011,2]
[340375002,1729129843016,-337500.00000005,0.00011,2]
[340375004,1729129843027,-1000.0,0.00011,2]
[340375017,1729129845942,385.26,9.141e-05,2]
[340375018,1729129846185,-714.32273314,0.00010892,2]
[340375019,1729129846195,-33929.20110665,0.00011,2]
[340375022,1729130336609,152.98,8.313e-05,2]
[340375023,1729130451836,1682.55073269,0.00010338,2]
[340375025,1729130500822,250.0,0.00010384,2]
[340375027,1729130610959,250.0,0.00010384,2]
[340375028,1729130620983,550.0,0.0001,2]
[340375029,1729130625848,411.38,8.518e-05,2]
[340375033,1729131032174,-299.00615911,0.00010428,2]
[340375035,1729131038396,-3.57384089,0.00010428,2]
[340375036,1729131038406,-662.41349079,0.00010438,2]
[340375037,1729131038417,-822.49017547,0.00010438,2]
[340375038,1729131038455,-381.33465368,0.00010438,2]
[340375039,1729131038467,-968.16168006,0.00010438,2]
[340375040,1729131038476,-176.16,0.00010497,2]
[340375041,1729131038486,-327.94,0.00010497,2]
[340375042,1729131038496,-310.32,0.00010708,2]
[340375043,1729131038505,-331.07187008,0.00010778,2]
[340375044,1729131038516,-340.98812992,0.00010778,2]
[340375045,1729131038526,-411.38,0.00010782,2]
[340375046,1729131038535,-231.298,0.00010888,2]
[340375047,1729131038544,-300.0,0.00010888,2]
[340375048,1729131038553,-237.31434823,0.00010888,2]
[340375049,1729131038565,-62.68565177,0.00010888,2]
[340375050,1729131038575,-222.80607322,0.00010889,2]
[340375051,1729131038586,-6343.80348218,0.00010889,2]
[340375052,1729131038599,-1357.22542988,0.00010889,2]
[340375053,1729131038610,-2084.0327375,0.00010889,2]
[340375054,1729131038621,-3251.88530753,0.00010889,2]
[340375055,1729131038632,-2166.78342138,0.00010889,2]
[340375056,1729131038644,-705.30933694,0.00010889,2]
[340375057,1729131038659,-284.61463314,0.00010889,2]
[340375058,1729131038670,-566.76354058,0.00010889,2]
[340375059,1729131038682,-3524.79836481,0.00010889,2]
[340375060,1729131038693,-538.79913189,0.00010889,2]
[340375061,1729131038704,-966.71268148,0.00010889,2]
[340375062,1729131038715,-358.33485164,0.00010889,2]
[340375074,1729131040084,-550.16903724,0.00010889,2]
[340375075,1729131040095,-485.3980518,0.00010889,2]
[340375076,1729131040106,-4276.48182047,0.00010889,2]
[340375077,1729131040233,-410.13177793,0.00010889,2]
[340375078,1729131040244,-616.8085999,0.00010889,2]
[340375079,1729131040255,-1345.230125,0.00010889,2]
[340375080,1729131040266,-4366.59563075,0.00010889,2]
[340375081,1729131040275,-428.952,0.00010891,2]
[340375082,1729131040285,-4409.2588,0.00010891,2]
[340375083,1729131040294,-1009.0,0.000109,2]
[340375084,1729131040303,-315.18741341,0.000109,2]
[340375085,1729131040312,-150.0,0.00010902,2]
[340375086,1729131040320,-150.0,0.0001092,2]
[340375087,1729131040329,-1327.29,0.0001092,2]
[340375088,1729131040339,-63.88370521,0.0001092,2]
[340375133,1729131043167,-643.95129479,0.0001092,2]
[340375134,1729131043177,-150.0,0.0001094,2]
[340375135,1729131043187,-170.89327709,0.00010941,2]
[340375136,1729131043197,-150.0,0.00010958,2]
[340375137,1729131043207,-168.3,0.00010959,2]
[340375138,1729131043217,-325.69,0.00010959,2]
[340375139,1729131043226,-164.85,0.00010959,2]
[340375140,1729131043236,-250.0,0.00010959,2]
[340375141,1729131043245,-150.0,0.00010963,2]
[340375142,1729131043255,-812.0,0.00010981,2]
[340375143,1729131043265,-1224.0,0.00010981,2]
[340375144,1729131043274,-449.0,0.00010981,2]
[340375145,1729131043283,-555.0,0.00010981,2]
[340375146,1729131043293,-832.273,0.00010981,2]
[340375147,1729131043303,-185.97187434,0.00010998,2]
[340375148,1729131043312,-500.0,0.00010999,2]
[340375149,1729131043321,-204.13618096,0.00010999,2]
[340375150,1729131043331,-2725.17723697,0.00011,2]
[340375169,1729131046117,-349.99877428,0.00011,2]
[340375170,1729131046128,-39768.43,0.00011,2]
[340375171,1729131046140,-269881.43515557,0.00011,2]
[340375172,1729131046149,-160979.34889433,0.00011,2]
[340375173,1729131046161,-800.15699181,0.00011,2]
[340375175,1729131150858,391.54,9.002e-05,2]
[340375176,1729131219658,10000.0,0.00027,60]
[340375177,1729131234314,10000.0,0.00027,60]
[340375178,1729131270978,10000.0,0.00027,60]
[340375179,1729131286269,10000.0,0.00027,60]
[340375180,1729131682645,371.96,8.677e-05,2]
[340375181,1729131687956,161.39,0.00027,60]
[340375183,1729131749678,6000.0,0.00027,60]
[340375184,1729131791816,500.0,0.00027,60]
[340375185,1729131807449,516.6562084,0.00027,60]
[340375191,1729132078216,1237.84290561,0.0001,2]
[340375196,1729132190505,-250.0,0.00010433,2]
[340375197,1729132190872,-1000.0,0.00010551,2]
[340375198,1729132190895,-248.25,0.00010672,2]
[340375199,1729132190920,-1493.90709439,0.00010673,2]
[340375207,1729132231086,-3890.0,0.00010567,2]
[340375221,1729132232263,-1869.0,0.00010567,2]
[340375222,1729132232273,-772.73999669,0.000108,2]
[340375223,1729132232284,-290.832,0.000108,2]
[340375234,1729132238335,-1645.75370331,0.000108,2]